lending/lending_fUSD_20251015
["ID","MTS","AMOUNT","RATE_DAILY","PERIOD"]
[391359304,1760565047642,-160.0,0.00024,2]
[391359305,1760565047652,-160.0,0.00024,2]
[391359306,1760565047662,-160.0,0.00024,2]
[391359307,1760565047671,-160.62202845,0.00024,2]
[391359308,1760565047682,-517376.79086874,0.00024,2]
[391359309,1760565047691,-1001.0,0.00024,2]
[391359310,1760565047701,-2000.0,0.00024,30]
[391359311,1760565047711,-2000.0,0.00024,30]
[391359312,1760565047720,-2000.0,0.00024,30]
[391359313,1760565047730,-2000.0,0.00024,30]
[391359314,1760565047739,-2000.0,0.00024,30]
[391359315,1760565047748,-2000.0,0.00024,30]
[391359316,1760565047758,-2000.0,0.00024,30]
[391359317,1760565047767,-222.558,0.00024,30]
[391359318,1760565047776,-1000.0,0.00024,30]
[391359319,1760565047786,-1000.0,0.00024,30]
[391359320,1760565047795,-1000.0,0.00024,30]
[391359321,1760565047805,-1000.0,0.00024,30]
[391359322,1760565047815,-1000.0,0.00024,30]
[391359323,1760565047824,-1000.0,0.00024,30]
[391359324,1760565047834,-1000.0,0.00024,30]
[391359325,1760565047843,-929.433,0.00024,30]
[391359326,1760565047853,-156.283,0.00024,30]
[391359327,1760565047863,-1000.0,0.00024,30]
[391359328,1760565047873,-1000.0,0.00024,30]
[391359329,1760565047884,-1000.0,0.00024,30]
[391359330,1760565047894,-1000.0,0.00024,30]
[391359331,1760565047903,-1000.0,0.00024,30]
[391359332,1760565047913,-1000.0,0.00024,30]
[391359333,1760565047923,-1000.0,0.00024,30]
[391359334,1760565047933,-698.57,0.00024,30]
[391359335,1760565047943,-475.49624517,0.00024,30]
[391359336,1760565047952,-636.0425,0.0002401,3]
[391359337,1760565047961,-166.66666667,0.00024016,2]
[391359338,1760565047971,-1244.95214269,0.00024029,2]
[391359339,1760565047981,-280.89544369,0.00024029,2]
[391359340,1760565047991,-425.27029124,0.00024029,2]
[391359341,1760565048001,-1153.59479049,0.00024029,2]
[391359342,1760565048010,-843.80181479,0.00024029,2]
[391359343,1760565048020,-1500.0,0.00024029,2]
[391359344,1760565048030,-1500.0,0.00024029,2]
[391359345,1760565048040,-1500.0,0.00024029,2]
[391359346,1760565048049,-230.17227971,0.00024029,2]
[391359347,1760565048060,-280.80771569,0.00024029,2]
[391359348,1760565048070,-1345.55723194,0.00024029,2]
[391359349,1760565048080,-2216.14701,0.0002406,2]
[391359350,1760565048090,-166.66666667,0.00024062,2]
[391359351,1760565048101,-3812.72938944,0.00024065,2]
[391359352,1760565048110,-2216.14701,0.0002407,2]
[391359353,1760565048120,-2216.14701,0.0002407,2]
[391359354,1760565048548,-2216.14701,0.0002407,2]
[391359355,1760565048558,-2216.14701,0.0002407,2]
[391359356,1760565048571,-2216.14701,0.0002407,2]
[391359357,1760565048581,-200.0,0.000241,7]
[391359358,1760565048590,-1179.42,0.00024109,2]
[391359359,1760565048600,-209.40437684,0.0002411,2]
[391359360,1760565048609,-166.66666667,0.0002412,2]
[391359361,1760565048619,-166.66666667,0.0002412,2]
[391359362,1760565048629,-166.66666667,0.0002412,2]
[391359363,1760565048638,-166.66666667,0.00024135,2]
[391359364,1760565048648,-219.0,0.00024164,7]
[391359365,1760565048658,-442.0,0.000242,2]
[391359366,1760565048667,-958.0,0.000242,2]
[391359367,1760565048677,-300.0,0.000242,2]
[391359368,1760565048687,-195.0,0.000242,2]
[391359369,1760565048696,-415.94396464,0.0002421,2]
[391359370,1760565048707,-3645.04368611,0.0002421,2]
[391359371,1760565048716,-166.66666667,0.0002424,2]
[391359372,1760565048726,-166.66666667,0.0002424,2]
[391359373,1760565048736,-166.66666667,0.0002424,2]
[391359374,1760565048745,-17700.92578292,0.0002429,7]
[391359375,1760565048758,-75798.3,0.000243,7]
[391359376,1760565048767,-1000.0,0.00024321,2]
[391359377,1760565048777,-1000.0,0.00024321,2]
[391359378,1760565048787,-1000.0,0.00024321,2]
[391359379,1760565048797,-1000.0,0.00024321,2]
[391359380,1760565048806,-1000.0,0.00024321,2]
[391359381,1760565048816,-152.0,0.00024345,12]
[391359382,1760565048825,-1179.42,0.00024383,2]
[391359383,1760565048835,-367.23686717,0.00024413,16]
[391359384,1760565048844,-150.0,0.00024451,2]
[391359385,1760565048854,-10733.0,0.00024466,2]
[391359386,1760565048864,-500.40266672,0.00024473,2]
[391359387,1760565048874,-500.0,0.00024473,2]
[391359388,1760565048884,-500.0,0.00024473,2]
[391359389,1760565048894,-150.0,0.00024499,2]
[391359390,1760565048904,-26763.45335692,0.000245,4]
[391359391,1760565048915,-26381.7610899,0.000245,2]
[391359392,1760565048925,-500.0,0.00024521,2]
[391359393,1760565048936,-265.39938706,0.00024521,2]
[391359394,1760565048946,-1000.0,0.00024521,2]
[391359395,1760565048959,-1000.0,0.00024521,2]
[391359396,1760565048969,-350.89592213,0.00024521,2]
[391359397,1760565048980,-250.0,0.00024521,2]
[391359398,1760565048990,-161.3934891,0.0002455,15]
[391359399,1760565049001,-77500.06536165,0.00024569,2]
[391359400,1760565049011,-2000.0,0.00024577,2]
[391359401,1760565049020,-1004.36850196,0.00024577,2]
[391359402,1760565049031,-2000.0,0.00024577,2]
[391359403,1760565049042,-589.05563407,0.0002465,2]
[391359404,1760565049052,-164.89957409,0.0002465,2]
[391359405,1760565049062,-14479.39236844,0.00024655,2]
[391359406,1760565049073,-1179.42,0.00024657,2]
[391359407,1760565049082,-500.0,0.00024657,2]
[391359408,1760565049093,-500.0,0.00024657,2]
[391359409,1760565049105,-500.0,0.00024657,2]
[391359410,1760565049115,-500.0,0.00024657,2]
[391359411,1760565049127,-500.0,0.00024657,2]
[391359412,1760565049137,-500.0,0.00024657,2]
[391359413,1760565049148,-1535.97,0.00024658,2]
[391359414,1760565049158,-1000.0,0.00024658,2]
[391359415,1760565049168,-217.15233878,0.00024658,2]
[391359416,1760565049179,-165.4,0.00024664,2]
[391359417,1760565049188,-59538.0,0.000247,2]
[391359418,1760565049199,-152.0,0.00024741,13]
[391359419,1760565049211,-565.29439612,0.00024768,2]
[391359420,1760565049220,-166.66666667,0.00024783,2]
[391359421,1760565049231,-166.66666667,0.00024783,2]
[391359422,1760565049241,-500.0,0.00024799,2]
[391359423,1760565049251,-500.0,0.00024799,2]
[391359424,1760565049264,-1500.0,0.000248,30]
[391359425,1760565049275,-3000.0,0.000248,9]
[391359426,1760565049286,-224691.308981,0.000248,3]
[391359427,1760565049295,-1500.0,0.00024868,2]
[391359428,1760565049306,-1500.0,0.00024868,2]
[391359429,1760565049316,-1500.0,0.00024868,2]
[391359430,1760565049325,-1500.0,0.00024868,2]
[391359431,1760565049342,-1413.68760025,0.00024868,2]
[391359432,1760565049356,-150.0,0.00024873,2]
[391359433,1760565049367,-501.33327533,0.00024899,2]
[391359434,1760565049377,-500.0,0.00024899,2]
[391359435,1760565049388,-500.0,0.00024899,2]
[391359436,1760565049398,-3800.0,0.000249,9]
[391359437,1760565049408,-87601.2632977,0.000249,3]
[391359438,1760565049418,-166.66666667,0.00024907,2]
[391359439,1760565049429,-166.66666667,0.00024907,2]
[391359440,1760565049439,-3812.72938944,0.00024909,2]
[391359441,1760565049450,-216.0,0.0002493,30]
[391359442,1760565049460,-1179.42,0.00024931,2]
[391359443,1760565049470,-1000.0,0.00024961,2]
[391359444,1760565049481,-367.23686717,0.0002498,17]
[391359445,1760565049491,-150.0,0.00024986,4]
[391359446,1760565049501,-150.0,0.00024986,4]
[391359447,1760565049511,-150.0,0.00024986,4]
[391359448,1760565049521,-150.0,0.00024986,4]
[391359449,1760565049532,-150.0,0.00024986,4]
[391359450,1760565049543,-215.51682004,0.00024986,4]
[391359451,1760565049553,-201.46335219,0.00024986,4]
[391359452,1760565049563,-150.0,0.00024986,4]
[391359453,1760565049574,-150.0,0.00024986,4]
[391359454,1760565049583,-150.0,0.00024986,4]
[391359455,1760565049593,-150.0,0.00024986,4]
[391359456,1760565049603,-150.0,0.00024986,4]
[391359457,1760565049613,-170.27442856,0.00024986,2]
[391359458,1760565049624,-661.98422179,0.0002499,2]
[391359459,1760565049636,-150.0,0.00024998,2]
[391359460,1760565049646,-300.0,0.00024999,10]
[391359461,1760565049657,-300.0,0.00024999,10]
[391359462,1760565049667,-300.0,0.00024999,10]
[391359463,1760565049677,-300.0,0.00024999,10]
[391359464,1760565049688,-300.0,0.00024999,10]
[391359465,1760565049699,-500.0,0.00024999,2]
[391359466,1760565049713,-500.0,0.00024999,2]
[391359467,1760565049725,-500.0,0.00024999,2]
[391359468,1760565049737,-500.0,0.00024999,2]
[391359469,1760565049748,-138021.88838155,0.00025,9]
[391359470,1760565049758,-30000.0,0.00025,2]
[391359471,1760565049769,-30000.0,0.00025,2]
[391359472,1760565049779,-30000.0,0.00025,2]
[391359473,1760565049790,-30000.0,0.00025,2]
[391359474,1760565049800,-7000.0,0.00025,2]
[391359475,1760565049811,-652446.14695461,0.00025,2]
[391359476,1760565049821,-329.46592397,0.00025,2]
[391359477,1760565049831,-599.10386825,0.00025,2]
[391359478,1760565049842,-204.21818634,0.00025,2]
[391359479,1760565049853,-1756.39496998,0.00025,2]
[391359480,1760565049864,-5805.36690631,0.00025,2]
[391359481,1760565049874,-360.0,0.00025,2]
[391359482,1760565049885,-2994.90323568,0.00025,2]
[391359483,1760565049896,-3181.90882967,0.00025,2]
[391359484,1760565049907,-1047.16934652,0.00025,2]
[391359485,1760565049917,-164.59082527,0.00025,2]
[391359486,1760565049927,-2581.56406699,0.00025,2]
[391359487,1760565049938,-211.27902553,0.00025,21]
[391359488,1760565049949,-3766.11568074,0.00025,2]
[391359489,1760565049960,-3515.69322288,0.00025,2]
[391359490,1760565049971,-25116.49661385,0.00025,2]
[391359491,1760565049981,-502.34959406,0.00025,7]
[391359492,1760565049991,-10000.0,0.00025,5]
[391359493,1760565050002,-1087.44920937,0.00025,60]
[391359494,1760565050012,-160.07510438,0.00025,2]
[391359495,1760565050023,-1007.38,0.00025,2]
[391359496,1760565050032,-1001.0,0.00025,2]
[391359497,1760565050043,-450.0,0.00025,2]
[391359498,1760565050053,-15000.0,0.0002501,2]
[391359499,1760565050064,-166.66666667,0.00025031,2]
[391359500,1760565050074,-166.66666667,0.00025031,2]
[391359501,1760565050088,-5000.0,0.00025033,2]
[391359502,1760565050100,-25000.0,0.00025066,2]
[391359503,1760565050111,-2522.89,0.00025068,2]
[391359504,1760565050122,-1500.0,0.00025068,2]
[391359505,1760565050133,-1500.0,0.00025068,2]
[391359506,1760565050144,-350.0,0.00025068,2]
[391359507,1760565050155,-2479.02,0.00025083,2]
[391359508,1760565050166,-300.0,0.00025099,10]
[391359509,1760565050176,-300.0,0.00025099,10]
[391359510,1760565050187,-300.0,0.00025099,10]
[391359511,1760565050203,-300.0,0.00025099,10]
[391359512,1760565050213,-200.0,0.000251,7]
[391359513,1760565050223,-75798.3,0.000251,7]
[391359514,1760565050233,-166.66666667,0.00025103,2]
[391359515,1760565050244,-19003.16,0.00025109,2]
[391359516,1760565050256,-9947.8324721,0.00025119,2]
[391359517,1760565050268,-2500.0,0.00025125,2]
[391359518,1760565050278,-2500.0,0.00025125,2]
[391359519,1760565050288,-152.0,0.00025136,14]
[391359520,1760565050299,-500.0,0.0002514,2]
[391359521,1760565050310,-25000.0,0.00025141,2]
[391359522,1760565050320,-218.68817822,0.00025177,2]
[391359523,1760565050333,-5000.0,0.00025178,2]
[391359524,1760565050343,-1976.55,0.00025184,2]
[391359525,1760565050353,-8569.4401412,0.00025193,2]
[391359526,1760565050363,-5000.0,0.00025194,2]
[391359527,1760565050374,-5513.0,0.000252,3]
[391359528,1760565050384,-825.67,0.00025202,2]
[391359529,1760565050394,-1179.42,0.00025205,2]
[391359530,1760565050405,-166.66666667,0.00025229,2]
[391359531,1760565050416,-170.27442856,0.0002526,2]
[391359532,1760565050426,-647.84032127,0.00025268,2]
[391359533,1760565050436,-2324.61,0.00025281,2]
[391359534,1760565050451,-168.19,0.00025298,2]
[391359535,1760565050462,-372.02,0.00025298,2]
[391359536,1760565050472,-168.19,0.00025298,2]
[391359537,1760565050483,-168.19,0.00025298,2]
[391359538,1760565050494,-168.19,0.00025298,2]
[391359539,1760565050504,-1090.4,0.00025298,2]
[391359540,1760565050515,-413.53,0.00025298,2]
[391359541,1760565050526,-5000.0,0.00025313,2]
[391359542,1760565050537,-1406.73390033,0.00025318,15]
[391359543,1760565050547,-326.81,0.00025328,2]
[391359544,1760565050558,-166.66666667,0.00025354,2]
[391359545,1760565050568,-226.0,0.00025373,7]
[391359546,1760565050579,-166.66666667,0.00025378,2]
[391359547,1760565050589,-1230.795,0.00025384,10]
[391359548,1760565050599,-5000.0,0.00025396,2]
[391359549,1760565050609,-2950.09,0.00025399,2]
[391359550,1760565050619,-730.64870774,0.00025416,2]
[391359551,1760565050630,-2000.0,0.00025416,2]
[391359552,1760565050643,-1371.05227471,0.00025416,2]
[391359553,1760565050655,-2000.0,0.00025416,2]
[391359554,1760565050665,-250.0,0.00025421,2]
[391359555,1760565050675,-5000.0,0.00025422,2]
[391359556,1760565050686,-5000.0,0.00025447,2]
[391359557,1760565050696,-1179.53352568,0.00025479,2]
[391359558,1760565050706,-859.37430797,0.00025485,2]
[391359559,1760565050716,-300.0,0.00025493,10]
[391359560,1760565050726,-300.0,0.00025493,10]
[391359561,1760565050736,-300.0,0.00025493,10]
[391359562,1760565050746,-300.0,0.00025493,10]
[391359563,1760565050756,-500.0,0.00025493,2]
[391359564,1760565050766,-800.0,0.00025494,7]
[391359565,1760565050776,-800.0,0.00025494,7]
[391359566,1760565050787,-800.0,0.00025494,7]
[391359567,1760565050798,-500.0,0.00025494,7]
[391359568,1760565050810,-800.0,0.00025494,7]
[391359569,1760565050821,-800.0,0.00025494,7]
[391359570,1760565050835,-800.0,0.00025494,7]
[391359571,1760565050844,-506.71910782,0.00025494,7]
[391359572,1760565050855,-800.0,0.00025494,7]
[391359573,1760565050866,-800.0,0.00025494,7]
[391359574,1760565050876,-800.0,0.00025494,7]
[391359575,1760565050886,-800.0,0.00025494,7]
[391359576,1760565050896,-800.0,0.00025494,7]
[391359577,1760565050906,-800.0,0.00025494,7]
[391359578,1760565050916,-800.0,0.00025494,7]
[391359579,1760565050927,-800.0,0.00025494,7]
[391359580,1760565050937,-800.0,0.00025494,7]
[391359581,1760565050948,-800.0,0.00025494,7]
[391359582,1760565050958,-800.0,0.00025494,7]
[391359583,1760565050969,-800.0,0.00025494,7]
[391359584,1760565050980,-800.0,0.00025494,7]
[391359585,1760565050990,-800.0,0.00025494,7]
[391359586,1760565051001,-800.0,0.00025494,7]
[391359587,1760565051012,-800.0,0.00025494,7]
[391359588,1760565051022,-800.0,0.00025494,7]
[391359589,1760565051337,-800.0,0.00025494,7]
[391359590,1760565051348,-800.0,0.00025494,7]
[391359591,1760565051358,-1900.0,0.00025494,7]
[391359592,1760565051368,-800.0,0.00025494,7]
[391359593,1760565051378,-800.0,0.00025494,7]
[391359594,1760565051388,-900.0,0.00025494,7]
[391359595,1760565051397,-1900.0,0.00025494,7]
[391359596,1760565051407,-800.0,0.00025494,7]
[391359597,1760565051416,-900.0,0.00025494,7]
[391359598,1760565051426,-800.0,0.00025494,7]
[391359599,1760565051440,-1900.0,0.00025494,7]
[391359600,1760565051450,-800.0,0.00025494,7]
[391359601,1760565051460,-900.0,0.00025494,7]
[391359602,1760565051470,-800.0,0.00025494,7]
[391359603,1760565051480,-1900.0,0.00025494,7]
[391359604,1760565051490,-800.0,0.00025494,7]
[391359605,1760565051500,-800.0,0.00025494,7]
[391359606,1760565051509,-900.0,0.00025494,7]
[391359607,1760565051519,-1900.0,0.00025494,7]
[391359608,1760565051529,-500.0,0.00025494,7]
[391359609,1760565051538,-800.0,0.00025494,7]
[391359610,1760565051547,-800.0,0.00025494,7]
[391359611,1760565051557,-900.0,0.00025494,7]
[391359612,1760565051566,-1900.0,0.00025494,7]
[391359613,1760565051576,-500.0,0.00025494,7]
[391359614,1760565051585,-800.0,0.00025494,7]
[391359615,1760565051595,-800.0,0.00025494,7]
[391359616,1760565051605,-900.0,0.00025494,7]
[391359617,1760565051615,-1900.0,0.00025494,7]
[391359618,1760565051625,-500.0,0.00025494,7]
[391359619,1760565051635,-800.0,0.00025494,7]
[391359620,1760565051645,-800.0,0.00025494,7]
[391359621,1760565051655,-900.0,0.00025494,7]
[391359622,1760565051664,-1900.0,0.00025494,7]
[391359623,1760565051674,-500.0,0.00025494,7]
[391359624,1760565051687,-800.0,0.00025494,7]
[391359625,1760565051697,-800.0,0.00025494,7]
[391359626,1760565051707,-900.0,0.00025494,7]
[391359627,1760565051717,-1900.0,0.00025494,7]
[391359628,1760565051726,-500.0,0.00025494,7]
[391359629,1760565051736,-800.0,0.00025494,7]
[391359630,1760565051746,-800.0,0.00025494,7]
[391359631,1760565051755,-900.0,0.00025494,7]
[391359632,1760565051766,-1900.0,0.00025494,7]
[391359633,1760565051775,-800.0,0.00025494,7]
[391359634,1760565051785,-800.0,0.00025494,7]
[391359635,1760565051794,-900.0,0.00025494,7]
[391359636,1760565051804,-500.0,0.00025494,7]
[391359637,1760565051814,-1900.0,0.00025494,7]
[391359638,1760565051823,-800.0,0.00025494,7]
[391359639,1760565051833,-900.0,0.00025494,7]
[391359640,1760565051843,-800.0,0.00025494,7]
[391359641,1760565051852,-500.0,0.00025494,7]
[391359642,1760565051862,-1900.0,0.00025494,7]
[391359643,1760565051871,-277.28195209,0.00025494,7]
[391359644,1760565051881,-900.0,0.00025494,7]
[391359645,1760565051891,-800.0,0.00025494,7]
[391359646,1760565051900,-500.0,0.00025494,7]
[391359647,1760565051910,-1900.0,0.00025494,7]
[391359648,1760565051920,-500.0,0.00025494,7]
[391359649,1760565051932,-800.0,0.00025494,7]
[391359650,1760565051942,-900.0,0.00025494,7]
[391359651,1760565051951,-800.0,0.00025494,7]
[391359652,1760565051962,-500.0,0.00025494,7]
[391359653,1760565051972,-1900.0,0.00025494,7]
[391359654,1760565051982,-900.0,0.00025494,7]
[391359655,1760565051991,-800.0,0.00025494,7]
[391359656,1760565052001,-500.0,0.00025494,7]
[391359657,1760565052010,-800.0,0.00025494,7]
[391359658,1760565052019,-1900.0,0.00025494,7]
[391359659,1760565052028,-800.0,0.00025494,7]
[391359660,1760565052038,-1158.48826633,0.00025494,7]
[391359661,1760565052047,-500.0,0.00025494,7]
[391359662,1760565052056,-900.0,0.00025494,7]
[391359663,1760565052065,-1900.0,0.00025494,7]
[391359664,1760565052074,-1280.33083805,0.00025494,7]
[391359665,1760565052083,-500.0,0.00025494,7]
[391359666,1760565052092,-900.0,0.00025494,7]
[391359667,1760565052101,-1900.0,0.00025494,7]
[391359668,1760565052110,-527.3021771,0.00025494,7]
[391359669,1760565052119,-900.0,0.00025494,7]
[391359670,1760565052128,-1900.0,0.00025494,7]
[391359671,1760565052138,-500.0,0.00025494,7]
[391359672,1760565052147,-900.0,0.00025494,7]
[391359673,1760565052157,-1900.0,0.00025494,7]
[391359674,1760565052166,-500.0,0.00025494,7]
[391359675,1760565052176,-500.0,0.00025494,7]
[391359676,1760565052186,-900.0,0.00025494,7]
[391359677,1760565052195,-1900.0,0.00025494,7]
[391359678,1760565052204,-500.0,0.00025494,7]
[391359679,1760565052213,-500.0,0.00025494,7]
[391359680,1760565052223,-900.0,0.00025494,7]
[391359681,1760565052232,-503.95003486,0.00025494,7]
[391359682,1760565052241,-1900.0,0.00025494,7]
[391359683,1760565052251,-500.0,0.00025494,7]
[391359684,1760565052266,-500.0,0.00025494,7]
[391359685,1760565052276,-900.0,0.00025494,7]
[391359686,1760565052285,-1900.0,0.00025494,7]
[391359687,1760565052295,-500.0,0.00025494,7]
[391359688,1760565052305,-900.0,0.00025494,7]
[391359689,1760565052315,-500.0,0.00025494,7]
[391359690,1760565052324,-1900.0,0.00025494,7]
[391359691,1760565052336,-900.0,0.00025494,7]
[391359692,1760565052345,-500.0,0.00025494,7]
[391359693,1760565052355,-500.0,0.00025494,7]
[391359694,1760565052365,-1900.0,0.00025494,7]
[391359695,1760565052375,-500.0,0.00025494,7]
[391359696,1760565052385,-500.0,0.00025494,7]
[391359697,1760565052395,-500.0,0.00025494,7]
[391359698,1760565052404,-1900.0,0.00025494,7]
[391359699,1760565052414,-900.0,0.00025494,7]
[391359700,1760565052422,-500.0,0.00025494,7]
[391359701,1760565052437,-500.0,0.00025494,7]
[391359702,1760565052447,-1900.0,0.00025494,7]
[391359703,1760565052457,-900.0,0.00025494,7]
[391359704,1760565052466,-500.0,0.00025494,7]
[391359705,1760565052476,-500.0,0.00025494,7]
[391359706,1760565052486,-1510.68150558,0.00025494,7]
[391359707,1760565052496,-1900.0,0.00025494,7]
[391359708,1760565052506,-500.0,0.00025494,7]
[391359709,1760565052515,-500.0,0.00025494,7]
[391359710,1760565052525,-1900.0,0.00025494,7]
[391359711,1760565052534,-500.0,0.00025494,7]
[391359712,1760565052544,-500.0,0.00025494,7]
[391359713,1760565052553,-500.0,0.00025494,7]
[391359714,1760565052563,-2335.51496656,0.00025494,7]
[391359715,1760565052572,-777.067349,0.00025494,7]
[391359716,1760565052583,-500.0,0.00025494,7]
[391359717,1760565052593,-500.0,0.00025494,7]
[391359718,1760565052603,-558.07929573,0.00025494,7]
[391359719,1760565052613,-500.0,0.00025494,7]
[391359720,1760565052622,-500.0,0.00025494,7]
[391359721,1760565052631,-500.0,0.00025494,7]
[391359722,1760565052640,-500.0,0.00025494,7]
[391359723,1760565052650,-931.48054198,0.00025494,7]
[391359724,1760565052661,-500.0,0.00025494,7]
[391359725,1760565052670,-500.0,0.00025494,7]
[391359726,1760565052681,-500.0,0.00025494,7]
[391359727,1760565052691,-500.0,0.00025494,7]
[391359728,1760565052700,-500.0,0.00025494,7]
[391359729,1760565052709,-500.0,0.00025494,7]
[391359730,1760565052718,-500.0,0.00025494,7]
[391359731,1760565052727,-500.0,0.00025494,7]
[391359732,1760565052736,-500.0,0.00025494,7]
[391359733,1760565052745,-500.0,0.00025494,7]
[391359734,1760565052754,-500.0,0.00025494,7]
[391359735,1760565052763,-500.0,0.00025494,7]
[391359736,1760565052772,-500.0,0.00025494,7]
[391359737,1760565052784,-500.0,0.00025494,7]
[391359738,1760565052794,-500.0,0.00025494,7]
[391359739,1760565052803,-500.0,0.00025494,7]
[391359740,1760565052811,-500.0,0.00025494,7]
[391359741,1760565052820,-500.0,0.00025494,7]
[391359742,1760565052829,-500.0,0.00025494,7]
[391359743,1760565052838,-500.0,0.00025494,7]
[391359744,1760565052847,-500.0,0.00025494,7]
[391359745,1760565052857,-500.0,0.00025494,7]
[391359746,1760565052865,-500.0,0.00025494,7]
[391359747,1760565052875,-923.80412501,0.00025494,7]
[391359748,1760565052884,-500.0,0.00025494,7]
[391359749,1760565052893,-500.0,0.00025494,7]
[391359750,1760565052903,-500.0,0.00025494,7]
[391359751,1760565052912,-500.0,0.00025494,7]
[391359752,1760565052923,-500.0,0.00025494,7]
[391359753,1760565052933,-500.0,0.00025494,7]
[391359754,1760565052948,-869.25063572,0.00025494,7]
[391359755,1760565052963,-1007.38,0.000255,2]
[391359756,1760565052973,-166.66666667,0.00025505,2]
[391359757,1760565052982,-159.51,0.0002552,2]
[391359758,1760565052991,-5000.0,0.0002552,2]
[391359759,1760565053000,-152.0,0.00025532,15]
[391359760,1760565053010,-170.27442856,0.00025534,2]
[391359761,1760565053020,-2719.98,0.00025542,2]
[391359762,1760565053030,-166.66666667,0.00025543,2]
[391359763,1760565053039,-166.66666667,0.00025543,2]
[391359764,1760565053049,-150.0,0.00025546,2]
[391359765,1760565053059,-367.23686717,0.00025547,18]
[391359766,1760565053069,-2270.73,0.00025559,2]
[391359767,1760565053079,-5000.0,0.00025577,2]
[391359768,1760565053088,-5000.0,0.00025585,2]
[391359769,1760565053097,-204.84769975,0.00025587,2]
[391359770,1760565053107,-1324.25,0.00025612,2]
[391359771,1760565053116,-1500.0,0.00025616,2]
[391359772,1760565053126,-539.56731829,0.00025616,2]
[391359773,1760565053135,-450.0,0.00025616,2]
[391359774,1760565053144,-5000.0,0.00025626,2]
[391359775,1760565053154,-166.66666667,0.00025631,2]
[391359776,1760565053164,-992.79,0.00025668,2]
[391359777,1760565053173,-166.66666667,0.00025671,2]
[391359778,1760565053185,-166.66666667,0.00025671,2]
[391359779,1760565053194,-3000.0,0.00025673,2]
[391359780,1760565053204,-2919.01725035,0.00025673,2]
[391359781,1760565053215,-5513.0,0.000257,5]
[391359782,1760565053225,-7410.63976703,0.00025715,2]
[391359783,1760565053236,-5000.0,0.00025715,2]
[391359784,1760565053246,-5000.0,0.00025715,2]
[391359785,1760565053256,-5000.0,0.00025715,2]
[391359786,1760565053268,-5000.0,0.00025715,2]
[391359787,1760565053278,-5000.0,0.0002575,2]
[391359788,1760565053288,-3812.72938944,0.00025754,2]
[391359789,1760565053298,-5022.24837778,0.00025777,2]
[391359790,1760565053308,-5000.0,0.00025784,2]
[391359791,1760565053317,-166.66666667,0.00025799,2]
[391359792,1760565053327,-166.66666667,0.00025799,2]
[391359793,1760565053337,-208.19141226,0.00025806,4]
[391359794,1760565053347,-1853.37,0.00025813,2]
[391359795,1760565053356,-18.10676132,0.00025827,4]
[391359796,1760565054858,-133.89323868,0.00025827,4]
[391359797,1760565054868,-148.86676732,0.00025853,2]
[391359798,1760565054879,-882.75445725,0.00025853,2]
[391359799,1760565054891,-364.13,0.00025853,2]
[391359800,1760565054902,-1057.4054,0.00025853,2]
[391359801,1760565054917,-2546.84337543,0.00025853,2]
[391359802,1760565054927,-17471.53704208,0.00025879,2]
[391359803,1760565055102,-2545.0,0.00020131,2]